bitfinex-derivatives/quotes_SOLF0:USTF0_20241217
["timestamp","ask_amount","ask_price","bid_price","bid_amount"]
[1734439248030,2.2118,226.09,226.05,2.2122]
[1734439249927,5.21439252,226.18,226.06,10.34298072]
[1734439250127,5.21439252,226.18,226.09,10.34298072]
[1734439250525,3.0615,226.22,226.09,10.34298072]
[1734439251126,3.0615,226.22,226.1,3.35149626]
[1734439251332,10.34298072,226.2,226.06,11.81188072]
[1734439251525,2.88,226.19,226.07,3.35248174]
[1734439251825,10.34298072,226.14,226.05,2.2121]
[1734439252031,2.88,226.13,225.98,11.81188072]
[1734439252227,2.88,226.13,225.99,8.72249006]
[1734439252432,2.2118,226.09,226.0,3.35480387]
[1734439252629,2.2118,226.09,226.01,3.35480387]
[1734439252933,2.2118,226.09,225.98,11.81188072]
[1734439253135,2.2118,226.09,225.99,8.72198985]
[1734439253325,2.2118,226.09,226.0,3.35461148]
[1734439253530,1.4804,226.12,225.98,10.34298072]
[1734439253730,2.2119,226.08,225.99,3.31314063]
[1734439253941,1.4804,226.12,226.0,3.31324346]
[1734439254126,1.4804,226.12,225.98,10.34298072]
[1734439254333,2.2119,226.09,225.99,3.31269555]
[1734439254626,1.4804,226.12,225.98,10.34298072]
[1734439254830,2.2117,226.1,226.01,10.34298072]
[1734439255030,1.4804,226.12,225.96,4.3306]
[1734439255031,1.4804,226.12,225.98,10.34298072]
[1734439255226,1.4804,226.12,225.99,2.78]
[1734439255437,1.4804,226.12,226.03,2.2123]
[1734439255438,2.212,226.07,226.03,2.2123]
[1734439255632,1.4804,226.12,226.03,2.2123]
[1734439255633,10.34298072,226.11,226.03,2.2123]
[1734439255936,10.34298072,226.11,226.01,2.2125]
[1734439256132,10.34298072,226.08,225.96,1.4506]
[1734439256435,10.34298072,226.08,225.95,13.12298072]
[1734439256436,2.78,226.08,225.95,13.12298072]
[1734439256734,2.78,226.08,225.88,4.4277]
[1734439256735,10.34298072,226.04,225.84,1.4665]
[1734439256938,2.2129,225.98,225.88,10.34298072]
[1734439257827,4.2994,226.02,225.91,15.69260971]
[1734439258129,4.2994,226.02,225.84,2.9667]
[1734439258130,10.34298072,226.01,225.88,2.78]
[1734439258329,10.34298072,226.01,225.88,8.20427907]
[1734439258535,1.4448,226.0,225.89,2.2137]
[1734439258736,1.4448,226.0,225.88,8.20427907]
[1734439259037,1.4448,226.0,225.88,5.42427907]
[1734439259535,2.2131,225.96,225.88,7.63807907]
[1734439259738,1.4448,226.0,225.88,2.2138]
[1734439260035,2.2131,225.96,225.88,2.2138]
[1734439260239,1.4448,226.0,225.9,2.2136]
[1734439260435,1.4448,226.0,225.87,8.18514581]
[1734439261026,2.2131,225.96,225.89,2.2137]
[1734439261429,2.2131,225.96,225.87,5.40514581]
[1734439261737,4.2994,226.02,225.89,10.34298072]
[1734439262435,2.2127,226.0,225.89,10.34298072]
[1734439262636,1.5194,226.02,225.92,10.34298072]
[1734439262838,3.6687,226.04,225.98,2.2128]
[1734439263028,50.62,226.22,225.95,10.34298072]
[1734439263029,2.78,226.1,225.95,10.34298072]
[1734439263338,10.34298072,226.1,225.95,10.34298072]
[1734439264236,10.34298072,226.1,226.02,2.2125]
[1734439264733,2.2121,226.07,226.02,2.2125]
[1734439265037,10.34298072,226.1,226.0,2.2126]
[1734439265231,10.34298072,226.1,225.95,10.34298072]
[1734439265428,2.2123,226.04,225.95,10.34298072]
[1734439265633,10.34298072,226.1,225.95,10.34298072]
[1734439266337,2.2121,226.06,225.95,10.34298072]
[1734439266638,10.34298072,226.1,225.95,10.34298072]
[1734439266837,2.212,226.07,226.01,2.2125]
[1734439267038,10.34298072,226.1,226.01,2.2125]
[1734439267232,2.2119,226.08,226.01,2.2125]
[1734439267431,4.419,226.33,226.05,10.34298072]
[1734439267736,13.36078072,226.21,226.06,2.78]
[1734439268039,13.36078072,226.21,226.07,2.78]
[1734439268441,2.211,226.18,226.11,2.2115]
[1734439268742,10.34298072,226.18,226.07,2.78]
[1734439269040,13.36078072,226.21,226.07,2.78]
[1734439269633,3.0178,226.21,226.07,2.78]
[1734439269934,10.34298072,226.29,226.14,10.34298072]
[1734439270129,2.21,226.28,226.21,2.2106]
[1734439270334,2.21,226.28,226.15,2.78]
[1734439270835,16.51674145,226.33,226.15,2.78]
[1734439271040,16.51674145,226.38,226.18,16.51674145]
[1734439271041,2.78,226.36,226.18,16.51674145]
[1734439271230,5.42662494,226.35,226.18,16.51674145]
[1734439271433,5.42662494,226.35,226.22,2.2105]
[1734439271633,16.51674145,226.33,226.22,2.2105]
[1734439272334,8.20662494,226.35,226.19,2.78]
[1734439272532,16.51674145,226.38,226.2,1.5402]
[1734439272736,2.2094,226.34,226.26,2.2101]
[1734439273031,5.29394462,226.39,226.26,2.78]
[1734439273231,1.4657,226.48,226.26,19.29674145]
[1734439273440,1.4657,226.48,226.3,16.51674145]
[1734439273637,1.4657,226.48,226.31,2.78]
[1734439274033,2.2085,226.45,226.37,2.2092]
[1734439274336,1.4657,226.48,226.38,2.78]
[1734439274538,2.2085,226.46,226.39,2.78]
[1734439274839,2.2085,226.46,226.4,2.78]
[1734439275046,2.2085,226.46,226.39,2.78]
[1734439275237,6.82757695,226.48,226.39,2.78]
[1734439275441,2.2085,226.45,226.37,2.2092]
[1734439275638,2.2085,226.45,226.38,2.78]
[1734439275939,2.2085,226.45,226.39,2.78]
[1734439276136,2.2085,226.45,226.37,2.2092]
[1734439276537,2.2089,226.42,226.36,2.78]
[1734439276935,6.82757695,226.48,226.36,2.78]
[1734439276936,1.4657,226.48,226.36,2.78]
[1734439277141,1.4657,226.48,226.32,1.5402]
[1734439277435,1.4657,226.48,226.33,2.78]
[1734439277840,2.2088,226.42,226.34,2.78]
[1734439278438,2.2085,226.46,226.38,2.2091]
[1734439278644,1.4657,226.48,226.38,2.2091]
[1734439279540,1.4657,226.48,226.34,2.78]
[1734439279740,16.51674145,226.5,226.34,2.78]
[1734439280139,2.2084,226.46,226.39,2.2091]
[1734439280342,2.2084,226.46,226.4,2.78]
[1734439280934,21.83953278,226.5,226.4,2.78]
[1734439281141,2.2085,226.45,226.4,2.78]
[1734439281634,16.51674145,226.5,226.4,2.78]
[1734439281635,2.2086,226.44,226.4,2.78]
[1734439281839,16.51674145,226.5,226.36,2.78]
[1734439282137,2.2088,226.42,226.35,5.2607257]
[1734439282341,2.2088,226.42,226.35,8.0407257]
[1734439282934,2.2087,226.44,226.35,8.0407257]
[1734439283239,19.29674145,226.5,226.36,2.76]
[1734439284135,16.51674145,226.5,226.36,2.76]
[1734439284937,16.51674145,226.5,226.4,2.2089]
[1734439284938,2.2084,226.46,226.4,2.2089]
[1734439285340,16.51674145,226.5,226.4,2.2089]
[1734439285540,5.22943527,226.52,226.4,2.2089]
[1734439285741,16.51674145,226.56,226.36,19.27674145]
[1734439285946,16.51674145,226.56,226.37,2.76]
[1734439286341,2.2081,226.49,226.43,2.2086]
[1734439286546,16.51674145,226.56,226.44,2.76]
[1734439286746,5.42887413,226.55,226.44,2.76]
[1734439287050,5.42887413,226.55,226.44,4.9686]
[1734439287345,5.42887413,226.55,226.44,2.76]
[1734439288142,2.2082,226.48,226.44,2.76]
[1734439288351,5.42887413,226.55,226.44,2.76]
[1734439289548,2.2083,226.47,226.44,2.76]
[1734439290047,2.2082,226.48,226.44,2.76]
[1734439290446,10.30276984,226.53,226.39,10.30276984]
[1734439290748,2.2084,226.47,226.41,2.2088]
[1734439290939,13.06276984,226.53,226.41,2.2088]
[1734439291343,13.06276984,226.53,226.4,2.76]
[1734439291344,2.2084,226.46,226.4,2.76]
[1734439291642,5.42887413,226.55,226.39,10.30276984]
[1734439291944,10.30276984,226.54,226.4,4.9689]
[1734439292149,10.30276984,226.48,226.36,10.30276984]
[1734439292348,10.30276984,226.48,226.37,4.9693]
[1734439292548,10.30276984,226.51,226.37,2.76]
[1734439292946,2.2085,226.46,226.4,2.209]
[1734439293142,10.30276984,226.51,226.4,2.209]
[1734439293348,10.30276984,226.51,226.37,2.76]
[1734439293649,2.2086,226.44,226.39,2.2091]
[1734439293844,10.30276984,226.51,226.37,2.76]
[1734439294050,10.30276984,226.51,226.39,2.2091]
[1734439294250,10.30276984,226.51,226.37,2.76]
[1734439294543,10.30276984,226.54,226.42,10.30276984]
[1734439294748,10.30276984,226.54,226.43,2.76]
[1734439295543,2.2081,226.5,226.44,2.2085]
[1734439295746,2.2081,226.5,226.43,2.76]
[1734439296346,2.2079,226.52,226.46,2.2083]
[1734439297547,1.4815,226.59,226.47,2.2083]
[1734439297748,2.2078,226.53,226.47,2.2083]
[1734439298140,10.30276984,226.6,226.45,10.30276984]
[1734439298343,2.2078,226.52,226.46,2.76]
[1734439298943,2.2078,226.52,226.43,1.4701]
[1734439298944,2.208,226.5,226.45,2.2085]
[1734439299252,10.30276984,226.55,226.45,4.9685]
[1734439299439,15.61808053,226.58,226.45,4.9685]
[1734439300542,2.208,226.5,226.45,4.9685]
[1734439301153,1.4887,226.59,226.45,13.06276984]
[1734439301541,10.30276984,226.53,226.33,1.4792]
[1734439301747,2.76,226.52,226.36,10.30276984]
[1734439301945,2.76,226.52,226.39,10.30276984]
[1734439302446,2.2081,226.49,226.39,10.30276984]
[1734439302841,2.2081,226.49,226.4,2.76]
[1734439303046,2.2081,226.49,226.44,2.2086]
[1734439303445,2.76,226.52,226.4,2.76]
[1734439303646,2.76,226.52,226.39,2.209]
[1734439303647,2.2086,226.44,226.39,2.209]
[1734439303848,10.30276984,226.5,226.36,10.30276984]
[1734439304053,2.2088,226.43,226.36,10.30276984]
[1734439304249,1.5071,226.49,226.38,2.2092]
[1734439304549,1.5071,226.49,226.36,10.30276984]
[1734439305057,1.5071,226.49,226.35,8.0207257]
[1734439305253,2.2092,226.38,226.35,8.0207257]
[1734439305548,2.2092,226.38,226.33,10.30276984]
[1734439307351,2.76,226.45,226.33,10.30276984]
[1734439307548,2.76,226.45,226.3,13.06276984]
[1734439307549,2.2095,226.35,226.3,13.06276984]
[1734439307951,2.76,226.45,226.3,13.06276984]
[1734439307952,2.2091,226.4,226.34,2.2095]
[1734439308149,1.4772,226.46,226.33,10.30276984]
[1734439308556,1.4772,226.46,226.36,2.2094]
[1734439308850,11.77996984,226.46,226.33,10.30276984]
[1734439309054,2.2088,226.43,226.34,2.2095]
[1734439309257,11.77996984,226.46,226.34,2.2095]
[1734439309754,2.2087,226.43,226.34,2.2095]
[1734439309959,11.77996984,226.46,226.35,2.2094]
[1734439310155,11.77996984,226.46,226.33,10.30276984]
[1734439310156,1.4772,226.46,226.33,10.30276984]
[1734439310354,1.4772,226.46,226.36,10.30276984]
[1734439310355,2.2086,226.44,226.36,10.30276984]
[1734439310556,2.2086,226.44,226.39,2.209]
[1734439311264,2.2087,226.43,226.38,2.2092]
[1734439311456,4.2671,226.49,226.36,10.30276984]
[1734439311661,3.0492,226.48,226.36,10.30276984]
[1734439312158,2.209,226.4,226.36,10.30276984]
[1734439312558,2.209,226.4,226.35,4.9694]
[1734439312755,2.2092,226.38,226.36,3.27221698]
[1734439313062,10.30276984,226.46,226.33,13.06276984]
[1734439313263,10.30276984,226.46,226.34,3.27303563]
[1734439313463,10.30276984,226.46,226.35,3.27303563]
[1734439313464,2.2092,226.39,226.35,3.27303563]
[1734439313661,10.30276984,226.46,226.33,13.06276984]
[1734439313962,2.2091,226.4,226.34,5.48689221]
[1734439314155,1.5071,226.49,226.35,3.27739221]
[1734439314361,1.5071,226.49,226.36,18.83192731]
[1734439314557,1.5071,226.49,226.41,2.2088]
[1734439315665,1.5071,226.49,226.42,2.2088]
[1734439315863,2.2083,226.47,226.36,10.30276984]
[1734439316164,13.31566984,226.58,226.42,10.30276984]
[1734439316360,1.5451,226.57,226.43,11.25657995]
[1734439316565,2.2075,226.55,226.44,12.99441319]
[1734439316865,2.2075,226.55,226.43,4.2799]
[1734439316866,10.30276984,226.58,226.48,2.2081]
[1734439317161,10.30276984,226.58,226.43,4.2799]
[1734439317162,2.2077,226.54,226.43,4.2799]
[1734439317368,2.2077,226.54,226.49,2.2081]
[1734439317563,1.5451,226.57,226.43,4.2799]
[1734439317762,1.5451,226.57,226.44,13.00317697]
[1734439317763,2.2077,226.53,226.44,13.00317697]
[1734439318066,2.2077,226.53,226.45,13.00317697]
[1734439318363,4.2651,226.57,226.31,5.23907969]
[1734439318364,10.30276984,226.49,226.36,11.75366984]
[1734439318564,10.30276984,226.49,226.37,15.57163912]
[1734439318767,10.30276984,226.49,226.38,12.85163912]
[1734439318964,10.30276984,226.49,226.37,2.72]
[1734439319164,2.2084,226.46,226.41,2.2088]
[1734439319468,2.72,226.5,226.37,2.72]
[1734439319661,2.72,226.5,226.38,8.2940795]
[1734439319866,2.72,226.5,226.39,8.2940795]
[1734439320063,2.72,226.5,226.4,12.75943157]
[1734439320264,2.72,226.5,226.41,7.65538265]
[1734439320462,2.72,226.5,226.42,3.1846529]
[1734439320667,2.2082,226.48,226.41,2.2088]
[1734439320871,2.2082,226.48,226.42,3.18575894]
[1734439321071,2.2082,226.48,226.38,2.7]
[1734439321263,2.2082,226.48,226.39,12.74719564]
[1734439321571,2.2082,226.48,226.43,2.2086]
[1734439321761,2.2082,226.48,226.4,5.29102562]
[1734439322165,2.2082,226.48,226.43,2.2086]
[1734439323770,2.72,226.5,226.38,2.7]
[1734439323970,13.02276984,226.5,226.39,5.36375073]
[1734439324672,2.2085,226.46,226.4,2.209]
[1734439324868,13.02276984,226.5,226.4,2.209]
[1734439325266,2.2086,226.44,226.39,7.57285073]
[1734439326268,2.2089,226.42,226.37,2.2093]
[1734439326468,10.30276984,226.47,226.35,2.7]
[1734439326669,1.5359,226.46,226.35,2.7]
[1734439326965,2.2088,226.43,226.36,2.2093]
[1734439327161,1.5359,226.46,226.36,2.2093]
[1734439327366,10.30276984,226.44,226.31,2.7]
[1734439327670,2.2091,226.4,226.34,2.2095]
[1734439327866,2.7,226.43,226.34,2.2095]
[1734439328265,2.2092,226.38,226.34,2.2095]
[1734439328466,2.7,226.43,226.31,5.34777724]
[1734439328665,2.7,226.43,226.31,7.55767724]
[1734439328862,2.2093,226.37,226.31,5.34777724]
[1734439329072,2.7,226.43,226.31,5.34777724]
[1734439329372,2.7,226.43,226.33,2.2097]
[1734439329666,2.2092,226.38,226.33,2.2097]
[1734439330368,2.2093,226.37,226.32,2.2098]
[1734439330569,10.30276984,226.41,226.28,10.30276984]
[1734439330768,1.5236,226.4,226.28,10.30276984]
[1734439331173,2.72,226.39,226.28,10.30276984]
[1734439331473,10.30276984,226.38,226.29,2.21]
[1734439332369,4.2142,226.39,226.28,5.19025836]
[1734439332370,1.4942,226.39,226.28,5.19025836]
[1734439332669,1.5236,226.4,226.28,15.4930282]
[1734439332874,2.2092,226.39,226.28,15.4930282]
[1734439333074,2.2092,226.39,226.33,2.2096]
[1734439333372,2.2092,226.39,226.28,15.4930282]
[1734439333573,2.2092,226.39,226.34,2.2096]
[1734439334064,2.2092,226.39,226.28,15.4930282]
[1734439334065,2.2088,226.42,226.37,2.2092]
[1734439334269,10.30276984,226.48,226.32,10.30276984]
[1734439334471,10.30276984,226.48,226.29,4.2247]
[1734439334775,10.30276984,226.45,226.3,14.76347008]
[1734439334970,10.30276984,226.42,226.28,5.19025836]
[1734439335272,10.30276984,226.39,226.31,2.2099]
[1734439336678,10.30276984,226.36,226.23,1.4873]
[1734439336871,2.72,226.38,226.24,4.46308068]
[1734439337077,2.2096,226.34,226.27,2.2102]
[1734439337576,2.2096,226.34,226.29,2.21]
[1734439337974,13.02276984,226.38,226.24,10.30276984]
[1734439338274,2.2097,226.33,226.28,2.2101]
[1734439339076,2.2098,226.32,226.27,2.2102]
[1734439339279,13.02276984,226.38,226.27,2.2102]
[1734439339475,13.02276984,226.38,226.23,4.2073]
[1734439339476,2.2099,226.31,226.26,2.2103]
[1734439339878,10.30276984,226.32,226.18,10.30276984]
[1734439340179,2.2102,226.28,226.19,2.72]
[1734439340774,13.02276984,226.32,226.18,10.30276984]
[1734439341081,2.2103,226.27,226.19,4.46151448]
[1734439341276,13.02276984,226.32,226.18,13.02276984]
[1734439341471,2.2106,226.24,226.19,2.211]
[1734439342478,10.30276984,226.29,226.17,2.2111]
[1734439342983,10.30276984,226.26,226.17,2.2111]
[1734439343277,13.02276984,226.26,226.16,2.2113]
[1734439344079,2.72,226.26,226.16,2.2113]
[1734439344284,10.30276984,226.25,226.16,2.2113]
[1734439344479,2.2108,226.22,226.16,2.2113]
[1734439344875,10.30276984,226.25,226.12,13.02276984]
[1734439345076,10.30276984,226.22,226.09,3.18313476]
[1734439345282,10.30276984,226.19,226.08,1.4964]
[1734439345483,2.2113,226.16,226.1,2.2118]
[1734439345679,2.2113,226.16,226.08,1.4964]
[1734439345885,12.94276984,226.19,226.08,1.4964]
[1734439346081,1.4416,226.24,226.08,1.4964]
[1734439346387,2.64,226.23,226.09,10.30276984]
[1734439346590,2.64,226.23,226.09,15.60436527]
[1734439346785,2.64,226.23,226.14,2.2115]
[1734439346786,2.2109,226.2,226.14,2.2115]
[1734439347587,2.2109,226.2,226.09,15.60436527]
[1734439347778,2.2108,226.21,226.15,2.2114]
[1734439349383,12.94276984,226.23,226.09,10.30276984]
[1734439349588,12.94276984,226.23,226.09,15.59557227]
[1734439349785,10.30276984,226.2,226.09,5.29280243]
[1734439350190,2.2111,226.18,226.12,2.2116]
[1734439350487,10.30276984,226.2,226.12,2.2116]
[1734439351091,2.2112,226.17,226.11,2.2118]
[1734439351683,10.30276984,226.2,226.11,2.2118]
[1734439351684,2.2113,226.16,226.11,2.2118]
[1734439352189,12.51306984,226.27,226.15,10.30276984]
[1734439352384,10.30276984,226.33,226.18,10.30276984]
[1734439352582,10.30276984,226.33,226.26,2.2103]
[1734439352784,14.85066984,226.36,226.21,10.30276984]
[1734439353288,2.2097,226.33,226.28,2.2101]
[1734439353684,14.85066984,226.36,226.28,2.2101]
[1734439353884,2.2096,226.34,226.28,2.2101]
[1734439354783,14.85066984,226.36,226.28,2.2101]
[1734439354982,2.2098,226.32,226.26,2.2103]
[1734439355294,10.30276984,226.33,226.19,4.2124]
[1734439355985,10.30276984,226.33,226.24,2.2105]
[1734439356790,2.2101,226.29,226.24,2.2105]
[1734439357292,2.2101,226.29,226.19,4.2124]
[1734439357293,10.30276984,226.3,226.22,2.2107]
[1734439357588,2.2102,226.28,226.22,2.2107]
[1734439357792,2.2102,226.28,226.23,2.2106]
[1734439357994,2.2102,226.28,226.19,4.2124]
[1734439358195,10.30276984,226.3,226.19,4.2124]
[1734439358394,12.51286984,226.3,226.24,2.2105]
[1734439358989,2.2101,226.3,226.25,2.2104]
[1734439359194,2.64,226.31,226.25,2.2104]
[1734439359389,2.2102,226.28,226.19,4.2124]
[1734439359593,10.30276984,226.3,226.19,1.5724]
[1734439360094,10.30276984,226.24,226.18,2.2111]
[1734439360293,10.30276984,226.24,226.15,2.64]
[1734439360693,2.2107,226.23,226.15,2.64]
[1734439361293,2.2107,226.23,226.18,2.2111]
[1734439362390,1.5738,226.36,226.21,10.30276984]
[1734439362590,10.30276984,226.41,226.26,10.30276984]
[1734439362792,10.30276984,226.41,226.31,2.2098]
[1734439362793,12.51166984,226.41,226.31,2.2098]
[1734439362999,12.51166984,226.41,226.27,2.64]
[1734439363394,10.30276984,226.47,226.32,10.30276984]
[1734439363605,1.4941,226.48,226.35,10.30276984]
[1734439364296,1.4941,226.48,226.34,3.0238]
[1734439364497,2.2087,226.43,226.37,2.2092]
[1734439364891,10.30276984,226.42,226.33,2.64]
[1734439365097,12.51156984,226.42,226.35,2.2094]
[1734439365301,12.51156984,226.42,226.33,2.64]
[1734439365302,10.30276984,226.39,226.29,2.64]
[1734439365799,2.2092,226.38,226.31,2.2098]
[1734439366595,4.1608,226.39,226.29,2.64]
[1734439366801,4.1608,226.39,226.29,2.21]
[1734439366802,5.7257,226.39,226.29,2.21]
[1734439366995,5.7257,226.39,226.22,1.4468]
[1734439367200,2.2095,226.35,226.23,2.64]
[1734439367503,1.5499,226.38,226.29,2.21]
[1734439367701,16.50389106,226.36,226.23,2.64]
[1734439367900,1.5499,226.38,226.28,2.2101]
[1734439368102,16.50389106,226.37,226.28,2.2101]
[1734439368611,16.50389106,226.37,226.23,2.64]
[1734439368820,2.2097,226.33,226.27,2.2102]
[1734439369007,16.50389106,226.47,226.26,16.50389106]
[1734439369205,1.5144,226.46,226.26,16.50389106]
[1734439369803,2.2088,226.42,226.36,2.2094]
[1734439370004,1.5144,226.46,226.3,2.64]
[1734439370208,2.64,226.45,226.3,2.64]
[1734439370402,2.2087,226.43,226.3,2.64]
[1734439370608,2.64,226.45,226.3,2.64]
[1734439371103,2.2086,226.44,226.39,2.2091]
[1734439371901,2.2086,226.44,226.38,2.2092]
[1734439372400,2.2087,226.43,226.36,2.2093]
[1734439372605,4.1544,226.46,226.3,2.64]
[1734439373006,2.2088,226.42,226.35,2.2094]
[1734439373202,2.2088,226.42,226.31,2.64]
[1734439374107,2.2088,226.42,226.37,2.2092]
[1734439376921,2.2088,226.42,226.38,2.2092]
[1734439377415,16.50389106,226.43,226.28,2.7]
[1734439378222,2.2093,226.37,226.32,2.2097]
[1734439378520,2.7,226.4,226.32,2.2097]
[1734439378920,16.50389106,226.39,226.24,2.7]
[1734439379124,16.50389106,226.35,226.24,2.7]
[1734439379425,3.0336,226.38,226.24,2.7]
[1734439380319,19.20389106,226.45,226.26,16.50389106]
[1734439380515,22.23749106,226.45,226.26,16.50389106]
[1734439381016,16.50389106,226.53,226.3,16.50389106]
[1734439381321,1.4606,226.5,226.31,7.2]
[1734439381521,1.4606,226.5,226.46,2.2083]
[1734439382921,1.4606,226.5,226.41,2.7]
[1734439383127,3.0696,226.55,226.41,2.7]
[1734439383521,3.0696,226.55,226.52,2.2078]
[1734439384017,3.0696,226.55,226.48,2.7]
[1734439384018,3.0696,226.55,226.5,2.2079]
[1734439384216,3.0696,226.55,226.48,2.7]
[1734439384617,1.4341,226.59,226.53,2.2077]
[1734439384818,6.85437953,226.59,226.53,2.2077]
[1734439385222,3.6413,226.59,226.53,2.2077]
[1734439385722,3.6413,226.59,226.48,2.7]
[1734439385723,1.4341,226.59,226.48,2.7]
[1734439386119,1.4341,226.59,226.52,2.2077]
[1734439386324,2.2074,226.57,226.5,2.7]
[1734439386622,16.50389106,226.58,226.47,2.7]
[1734439386926,19.48539106,226.58,226.47,2.7]
[1734439387530,2.2075,226.55,226.49,2.2081]
[1734439388023,19.48539106,226.58,226.47,2.7]
[1734439388327,19.48539106,226.58,226.5,2.208]
[1734439389428,2.2075,226.56,226.5,2.208]
[1734439391127,2.2079,226.52,226.46,4.9084]
[1734439391427,19.48539106,226.58,226.42,2.7]
[1734439391831,2.2077,226.53,226.47,2.2082]
[1734439392827,2.2077,226.53,226.42,2.7]
[1734439393030,2.2077,226.53,226.48,2.2082]
[1734439394522,19.48539106,226.58,226.45,2.2085]
[1734439394523,2.208,226.51,226.45,2.2085]
[1734439394727,19.48539106,226.58,226.42,2.7]
[1734439395032,2.2075,226.55,226.42,2.7]
[1734439395225,1.4341,226.59,226.42,2.7]
[1734439395828,2.2074,226.56,226.5,2.208]
[1734439396027,2.2074,226.56,226.48,2.7]
[1734439397636,2.2074,226.56,226.51,2.2079]
[1734439397835,2.2075,226.55,226.48,2.7]
[1734439398534,2.2075,226.55,226.5,2.2079]
[1734439399633,10.29771888,226.58,226.47,2.7]
[1734439399833,1.4341,226.59,226.47,2.7]
[1734439400135,1.4341,226.59,226.55,2.2075]
[1734439400336,1.4341,226.59,226.47,2.7]
[1734439400933,2.2072,226.58,226.47,2.7]
[1734439401438,2.2073,226.57,226.53,2.2076]
[1734439401735,1.4341,226.59,226.47,2.7]
[1734439401937,2.2064,226.67,226.59,2.2071]
[1734439402239,10.29771888,226.66,226.56,2.7]
[1734439402732,10.29771888,226.66,226.49,10.29771888]
[1734439402932,10.29771888,226.63,226.5,2.7]
[1734439403133,10.29771888,226.6,226.48,1.497]
[1734439403328,10.29771888,226.6,226.49,2.208]
[1734439403329,2.2078,226.53,226.49,2.208]
[1734439403932,2.2073,226.57,226.53,2.2077]
[1734439404132,10.29771888,226.62,226.49,2.72]
[1734439404331,10.29771888,226.59,226.5,2.72]
[1734439404530,2.2076,226.55,226.5,4.9279]
[1734439404937,2.2076,226.55,226.5,2.72]
[1734439405339,2.2076,226.55,226.52,2.2078]
[1734439405639,2.2074,226.57,226.5,2.72]
[1734439406040,2.2074,226.57,226.51,2.72]
[1734439406435,2.2074,226.57,226.53,2.2077]
[1734439407139,2.2074,226.56,226.52,2.2078]
[1734439408034,2.207,226.61,226.57,2.2073]
[1734439408228,2.9908,226.63,226.53,3.53]
[1734439408437,10.29771888,226.61,226.53,3.53]
[1734439408634,2.2072,226.59,226.54,2.2075]
[1734439408831,10.29771888,226.61,226.53,3.53]
[1734439409230,2.2071,226.59,226.55,2.2074]
[1734439409938,2.2071,226.59,226.55,6.6974]
[1734439410531,2.2071,226.59,226.56,2.2074]
[1734439411132,2.2071,226.59,226.56,8.5174]
[1734439411939,2.2071,226.6,226.56,8.5174]
[1734439412436,2.2071,226.6,226.56,6.31]
[1734439413537,2.9908,226.63,226.57,2.2073]
[1734439413741,2.207,226.61,226.57,2.2073]
[1734439413942,10.29771888,226.82,226.57,2.72]
[1734439414132,11.86211888,226.7,226.61,2.2069]
[1734439414333,11.86211888,226.7,226.57,2.72]
[1734439414334,2.2068,226.63,226.57,2.72]
[1734439414735,2.2068,226.63,226.6,2.207]
[1734439417740,15.47975435,226.67,226.56,6.31]
[1734439418043,2.2069,226.62,226.58,2.2071]
[1734439419243,2.2069,226.62,226.56,9.03]
[1734439419444,10.29771888,226.63,226.56,6.31]
[1734439419746,2.2071,226.6,226.56,6.31]
[1734439420341,2.2073,226.58,226.56,6.31]
[1734439421046,2.2071,226.6,226.56,8.5174]
[1734439421443,2.2071,226.6,226.57,3.53]
[1734439421650,2.2069,226.62,226.57,3.53]
[1734439421844,10.29771888,226.66,226.57,3.53]
[1734439422044,10.29771888,226.66,226.58,2.72]
[1734439422650,2.2068,226.63,226.59,2.207]
[1734439423647,2.2066,226.65,226.6,2.207]